fUST/lending_fUST_20250110
["ID","MTS","AMOUNT","RATE_DAILY","PERIOD"]
[348402227,1736512241449,-500.0,0.00021917,3]
[348402229,1736512241458,-505.83177727,0.00021917,3]
[348402231,1736512241468,-500.0,0.00021917,3]
[348402233,1736512241477,-503.48727912,0.00021917,3]
[348402236,1736512241487,-500.0,0.00021917,3]
[348402238,1736512241496,-500.0,0.00021917,3]
[348402239,1736512241505,-500.0,0.00021917,3]
[348402241,1736512241514,-367.41468256,0.00021917,3]
[348402244,1736512241523,-507.33889814,0.00021917,3]
[348402245,1736512241533,-500.0,0.00021917,3]
[348402247,1736512241542,-501.77579039,0.00021917,3]
[348402250,1736512241551,-500.0,0.00021917,3]
[348402251,1736512241560,-500.0,0.00021917,3]
[348402253,1736512241569,-500.0,0.00021917,3]
[348402256,1736512241578,-506.76393999,0.00021917,3]
[348402257,1736512241587,-500.0,0.00021917,3]
[348402259,1736512241596,-500.0,0.00021917,3]
[348402261,1736512241606,-574.16,0.00021917,3]
[348402263,1736512241615,-501.41694209,0.00021917,3]
[348402265,1736512241624,-500.0,0.00021917,3]
[348402267,1736512241633,-500.0,0.00021917,3]
[348402269,1736512241642,-500.0,0.00021917,3]
[348402271,1736512241654,-500.0,0.00021917,3]
[348402273,1736512241663,-500.0,0.00021917,3]
[348402275,1736512241672,-500.0,0.00021917,3]
[348402278,1736512241681,-151.0,0.00021917,2]
[348402280,1736512241691,-500.0,0.00021917,3]
[348402281,1736512241700,-500.0,0.00021917,3]
[348402283,1736512241709,-151.0,0.00021917,2]
[348402286,1736512241719,-500.0,0.00021917,3]
[348402288,1736512241730,-500.0,0.00021917,3]
[348402290,1736512241739,-500.0,0.00021917,3]
[348402292,1736512241748,-500.0,0.00021917,3]
[348402294,1736512241758,-502.8373206,0.00021917,3]
[348402296,1736512241767,-501.61095484,0.00021917,3]
[348402298,1736512241776,-500.0,0.00021917,3]
[348402301,1736512241795,-501.69174417,0.00021917,3]
[348402303,1736512241807,-500.0,0.00021917,3]
[348402305,1736512241817,-500.0,0.00021917,3]
[348402307,1736512241826,-3877.09,0.00021917,3]
[348402309,1736512241835,-500.0,0.00021917,3]
[348402311,1736512241845,-506.58593233,0.00021917,3]
[348402313,1736512241854,-411.23492835,0.00021917,3]
[348402316,1736512241863,-500.0,0.00021917,3]
[348402318,1736512241872,-500.0,0.00021917,3]
[348402320,1736512241882,-500.0,0.00021917,3]
[348402322,1736512241891,-500.0,0.00021917,3]
[348402324,1736512241900,-500.0,0.00021917,3]
[348402326,1736512241909,-502.49008051,0.00021917,3]
[348402328,1736512241917,-501.26935729,0.00021917,3]
[348402330,1736512241927,-500.0,0.00021917,3]
[348402332,1736512241936,-501.62683274,0.00021917,3]
[348402334,1736512241945,-491.91640805,0.00021917,3]
[348402336,1736512241954,-500.0,0.00021917,3]
[348402338,1736512241963,-500.0,0.00021917,3]
[348402340,1736512241972,-151.0,0.00021917,2]
[348402355,1736512241981,-500.0,0.00021917,3]
[348402358,1736512242117,-500.0,0.00021917,3]
[348402360,1736512242127,-500.0,0.00021917,3]
[348402362,1736512242138,-500.0,0.00021917,3]
[348402364,1736512242148,-500.0,0.00021917,3]
[348402366,1736512242158,-115.02361982,0.00021917,3]
[348402528,1736512243535,-384.97638018,0.00021917,3]
[348402530,1736512243545,-500.0,0.00021917,3]
[348402532,1736512243554,-500.0,0.00021917,3]
[348402534,1736512243563,-501.69471472,0.00021917,3]
[348402536,1736512243572,-170.754731,0.00021917,2]
[348402538,1736512243581,-500.0,0.00021917,3]
[348402540,1736512243590,-500.0,0.00021917,3]
[348402542,1736512243601,-170.754731,0.00021917,2]
[348402544,1736512243610,-502.01368748,0.00021917,3]
[348402546,1736512243619,-500.0,0.00021917,3]
[348402548,1736512243628,-512.04748855,0.00021917,3]
[348402550,1736512243638,-603.35422825,0.00021917,3]
[348402552,1736512243649,-500.0,0.00021917,3]
[348402554,1736512243660,-500.0,0.00021917,3]
[348402556,1736512243669,-500.0,0.00021917,3]
[348402558,1736512243679,-505.62070115,0.00021917,3]
[348402560,1736512243689,-188.0,0.00021917,2]
[348402562,1736512243699,-1769.55402567,0.00021917,2]
[348402565,1736512243714,-230.44597433,0.00021917,2]
[348402567,1736512243723,-500.0,0.00021917,3]
[348402569,1736512243733,-500.0,0.00021917,3]
[348402571,1736512243744,-500.0,0.00021917,3]
[348402573,1736512243753,-2034.05,0.00021917,3]
[348402575,1736512243762,-500.0,0.00021917,3]
[348402577,1736512243771,-504.57188026,0.00021917,3]
[348402579,1736512243781,-464.42158979,0.00021917,3]
[348402581,1736512243790,-500.0,0.00021917,3]
[348402583,1736512243800,-151.463292,0.00021917,2]
[348402585,1736512243809,-500.0,0.00021917,3]
[348402587,1736512243818,-500.0,0.00021917,3]
[348402589,1736512243827,-500.0,0.00021917,3]
[348402591,1736512243836,-500.0,0.00021917,3]
[348402593,1736512243846,-151.0,0.00021917,2]
[348402595,1736512243855,-500.0,0.00021917,3]
[348402597,1736512243864,-500.0,0.00021917,3]
[348402599,1736512243873,-151.0,0.00021917,2]
[348402601,1736512243883,-506.86160828,0.00021917,3]
[348402603,1736512243892,-500.0,0.00021917,3]
[348402605,1736512243902,-500.0,0.00021917,3]
[348402607,1736512243911,-500.0,0.00021917,3]
[348402609,1736512243919,-500.0,0.00021917,2]
[348402611,1736512243927,-500.0,0.00021917,3]
[348402613,1736512243936,-500.0,0.00021917,3]
[348402615,1736512243944,-500.0,0.00021917,3]
[348402617,1736512243953,-500.0,0.00021917,3]
[348402619,1736512243962,-500.0,0.00021917,3]
[348402620,1736512243971,-500.0,0.00021917,3]
[348402621,1736512243981,-500.0,0.00021917,3]
[348402622,1736512243992,-500.0,0.00021917,3]
[348402623,1736512244002,-1.42427457,0.00021917,3]
[348402637,1736512246117,-8.77331068,0.00021917,3]
[348402638,1736512438724,5000.0,0.0002,7]
[348402639,1736512454181,5000.0,0.0002,7]
[348402642,1736512781144,180.940867,0.00013973,2]
[348402643,1736513155662,1000.0,0.0002,20]
[348402644,1736513168651,1000.0,0.00019,19]
[348402645,1736513243311,-5000.0,0.00017902,2]
[348402646,1736513243334,-828.02083803,0.00018083,2]
[348402647,1736513243358,-282.230236,0.00018826,2]
[348402648,1736513243379,-1000.0,0.00019,2]
[348402649,1736513243400,-790.343858,0.00019188,2]
[348402650,1736513243422,-300.0,0.00019816,2]
[348402651,1736513243447,-2792.0,0.00019816,2]
[348402652,1736513243470,-1112.07812382,0.00019817,2]
[348402653,1736513243493,-984.50407296,0.00019831,2]
[348402654,1736513243517,-500.0,0.0001993,2]
[348402655,1736513243634,-500.0,0.0001993,2]
[348402656,1736513243656,-500.0,0.0001993,2]
[348402657,1736513243678,-500.0,0.0001993,2]
[348402658,1736513243698,-558.19286957,0.0001993,2]
[348402659,1736513243722,-248.0363428,0.0001993,2]
[348402660,1736513243762,1000.0,0.00018,18]
[348402661,1736513246095,-251.9636572,0.0001993,2]
[348402662,1736513246115,-500.0,0.0001993,2]
[348402663,1736513246134,-500.0,0.0001993,2]
[348402664,1736513246156,-500.0,0.0001993,2]
[348402665,1736513246178,-208.88602449,0.0001993,2]
[348402666,1736513246198,-500.0,0.0001993,2]
[348402667,1736513246218,-500.0,0.0001993,2]
[348402668,1736513246239,-500.0,0.0001993,2]
[348402669,1736513246260,-194.3902063,0.0001993,2]
[348402670,1736513248090,-448.32909841,0.0001993,2]
[348402671,1736513248112,-3.44430471,0.0001993,2]
[348402672,1736513282600,592.9,0.00023,120]
[348402673,1736513282633,407.1,0.00023,120]
[348402674,1736513382094,309.7,0.0001606,2]
[348402686,1736513432900,-1696.86499,0.0001883,2]
[348402687,1736513433111,-4433.0694993,0.0001883,2]
[348402693,1736513438060,-5000.0,0.00018642,2]
[348402694,1736513438069,-2736.3712137,0.0001883,2]
[348402695,1736513438079,-300.0,0.00018896,2]
[348402696,1736513438088,-500.0,0.00018897,2]
[348402697,1736513438097,-500.0,0.00018897,2]
[348402698,1736513438106,-500.0,0.00018897,2]
[348402699,1736513438115,-500.0,0.00018897,2]
[348402700,1736513438124,-500.0,0.00018897,2]
[348402701,1736513438133,-487.96910953,0.00018897,2]
[348402702,1736513438143,-500.0,0.00018897,2]
[348402703,1736513438151,-500.0,0.00018897,2]
[348402704,1736513438160,-500.0,0.00018897,2]
[348402705,1736513438170,-500.0,0.00018897,2]
[348402706,1736513438178,-500.0,0.00018897,2]
[348402707,1736513438187,-613.12003236,0.00018897,2]
[348402708,1736513438199,-500.0,0.00018897,2]
[348402709,1736513438208,-500.0,0.00018897,2]
[348402710,1736513438217,-500.0,0.00018897,2]
[348402711,1736513438227,-500.0,0.00018897,2]
[348402712,1736513438236,-500.0,0.00018897,2]
[348402713,1736513438245,-500.0,0.00018897,2]
[348402714,1736513438254,-500.0,0.00018897,2]
[348402715,1736513438264,-650.0,0.00018897,2]
[348402716,1736513438273,-317.354379,0.00018897,2]
[348402717,1736513438282,-500.0,0.00018897,2]
[348402718,1736513438292,-454.7673163,0.00018897,2]
[348402719,1736513438301,-500.0,0.00018897,2]
[348402720,1736513438310,-600.04985518,0.00018897,2]
[348402721,1736513438319,-273.04383721,0.00018897,2]
[348402722,1736513438328,-500.0,0.00018897,2]
[348402723,1736513438337,-500.0,0.00018897,2]
[348402724,1736513438347,-500.0,0.00018897,2]
[348402725,1736513438356,-500.0,0.00018897,2]
[348402726,1736513438364,-500.0,0.00018897,2]
[348402727,1736513438373,-500.0,0.00018897,2]
[348402728,1736513438382,-500.0,0.00018897,2]
[348402729,1736513438392,-500.0,0.00018897,2]
[348402730,1736513438401,-500.0,0.00018897,2]
[348402731,1736513438410,-500.0,0.00018897,2]
[348402732,1736513438420,-500.0,0.00018897,2]
[348402733,1736513438429,-500.0,0.00018897,2]
[348402734,1736513438438,-500.0,0.00018897,2]
[348402735,1736513438448,-500.0,0.00018897,2]
[348402736,1736513438457,-500.0,0.00018897,2]
[348402737,1736513438466,-157.93753254,0.00018897,2]
[348402738,1736513438478,-500.0,0.00018897,2]
[348402739,1736513438488,-500.0,0.00018897,2]
[348402740,1736513438498,-500.0,0.00018897,2]
[348402741,1736513438508,-500.0,0.00018897,2]
[348402742,1736513438519,-500.0,0.00018897,2]
[348402743,1736513438528,-500.0,0.00018897,2]
[348402744,1736513438537,-500.0,0.00018897,2]
[348402745,1736513438547,-500.0,0.00018897,2]
[348402746,1736513438556,-500.0,0.00018897,2]
[348402747,1736513438566,-500.0,0.00018897,2]
[348402748,1736513438575,-500.0,0.00018897,2]
[348402749,1736513438585,-500.0,0.00018897,2]
[348402750,1736513438594,-500.0,0.00018897,2]
[348402751,1736513438603,-537.75504705,0.00018897,2]
[348402752,1736513438612,-500.0,0.00018897,2]
[348402753,1736513438622,-500.0,0.00018897,2]
[348402754,1736513438631,-500.0,0.00018897,2]
[348402755,1736513438640,-500.0,0.00018897,2]
[348402756,1736513438649,-500.0,0.00018897,2]
[348402757,1736513438659,-500.0,0.00018897,2]
[348402758,1736513438668,-500.0,0.00018897,2]
[348402759,1736513438677,-500.0,0.00018897,2]
[348402760,1736513438687,-500.0,0.00018897,2]
[348402761,1736513438696,-500.0,0.00018897,2]
[348402762,1736513438706,-500.0,0.00018897,2]
[348402763,1736513438715,-500.0,0.00018897,2]
[348402764,1736513438724,-500.0,0.00018897,2]
[348402765,1736513438734,-500.0,0.00018897,2]
[348402766,1736513438743,-500.0,0.00018897,2]
[348402767,1736513438752,-500.0,0.00018897,2]
[348402768,1736513438761,-500.0,0.00018897,2]
[348402769,1736513438771,-500.0,0.00018897,2]
[348402770,1736513438781,-500.0,0.00018897,2]
[348402771,1736513438791,-500.0,0.00018897,2]
[348402772,1736513438879,-500.0,0.00018897,2]
[348402773,1736513438890,-500.0,0.00018897,2]
[348402774,1736513438901,-500.0,0.00018897,2]
[348402775,1736513438910,-419.59324063,0.00018897,2]
[348402776,1736513438927,-746.37867297,0.00018897,2]
[348402777,1736513438940,-6954.0280864,0.00018897,2]
[348402778,1736513438949,-2334.2538746,0.00018898,2]
[348402779,1736513438958,-1186.34031569,0.000189,2]
[348402780,1736513438968,-500.0,0.00019178,2]
[348402781,1736513438977,-500.0,0.00019178,2]
[348402782,1736513438986,-586.01692091,0.00019178,2]
[348402783,1736513438995,-500.0,0.00019178,2]
[348402784,1736513439005,-500.0,0.00019178,2]
[348402785,1736513439014,-226.880101,0.00019178,2]
[348402786,1736513439023,-5000.0,0.00019534,2]
[348402787,1736513439032,-861.44106384,0.00019629,2]
[348402788,1736513439042,-161.2065452,0.00019631,2]
[348402789,1736513439051,-549.61672286,0.00019728,2]
[348402790,1736513439060,-157.17,0.0001993,2]
[348402791,1736513439070,-1000.0,0.0002,3]
[348402792,1736513439079,-14411.77262378,0.00020035,2]
[348402793,1736513439095,-10488.22737622,0.00020035,2]
[348402794,1736513439104,-861.4410638,0.00020154,2]
[348402795,1736513439113,-180.940867,0.00020447,2]
[348402796,1736513439122,-187.5871754,0.00020521,2]
[348402797,1736513439131,-420.0,0.00020599,2]
[348402798,1736513439140,-164.46859,0.00020619,2]
[348402799,1736513439149,-861.4410638,0.00020678,2]
[348402800,1736513439158,-161.20654519,0.00020724,2]
[348402801,1736513439167,-771.046,0.0002082,2]
[348402802,1736513439176,-1000.0,0.00021,21]
[348402803,1736513439186,-1000.0,0.00021,4]
[348402804,1736513439195,-861.4410638,0.00021203,2]
[348402805,1736513439204,-180.6696796,0.00021697,2]
[348402806,1736513439213,-861.4410638,0.00021728,2]
[348402807,1736513439222,-153.0,0.00021753,2]
[348402808,1736513439232,-161.20654519,0.00021817,2]
[348402809,1736513439241,-150.559,0.00021821,2]
[348402810,1736513439249,-2081.0,0.00021821,2]
[348402811,1736513439259,-536.849,0.00021821,2]
[348402812,1736513439268,-2318.0,0.00021821,2]
[348402813,1736513439278,-151.209,0.00021821,2]
[348402814,1736513439288,-4924.30374418,0.00021879,2]
[348403160,1736513446380,-5000.0,0.00021602,2]
[348403161,1736513446389,-394.0,0.00021821,2]
[348403162,1736513446399,-1647.8720968,0.00021879,2]
[348403165,1736513446533,-3702.27117071,0.00021879,2]
[348403166,1736513446543,-1334.40052917,0.00021882,2]
[348403167,1736513446553,-3947.35185397,0.000219,2]
[348403168,1736513446563,-668.48301183,0.0002191,2]
[348403169,1736513446573,-272.888,0.00021916,2]
[348403170,1736513446583,-499.0,0.00021916,2]
[348403171,1736513446592,-151.0,0.00021917,2]
[348403172,1736513446601,-151.0,0.00021917,2]
[348403173,1736513446610,-151.0,0.00021917,2]
[348403174,1736513446620,-151.0,0.00021917,2]
[348403175,1736513446629,-301.205568,0.00021917,2]
[348403176,1736513446639,-351.979272,0.00021917,2]
[348403177,1736513446649,-351.979272,0.00021917,2]
[348403178,1736513446658,-509.86347526,0.00021917,3]
[348403179,1736513446668,-297.06165,0.00021917,2]
[348403180,1736513446677,-297.06165,0.00021917,2]
[348403181,1736513446687,-500.0,0.00021917,3]
[348403182,1736513446696,-387.23316709,0.00021917,3]
[348403191,1736513649302,5000.0,0.0002,7]
[348403192,1736513664970,5000.0,0.0002,7]
[348403193,1736513768565,162.84678,0.00013973,2]
[348403195,1736514427131,-1365.28658351,0.00017365,2]
[348403196,1736514427154,-7743.314351,0.00017717,2]
[348403197,1736514427175,-282.230237,0.00018103,2]
[348403198,1736514427196,-323.04039896,0.00018146,2]
[348403199,1736514427217,-300.0,0.00018244,2]
[348403200,1736514427238,-500.0,0.00018245,2]
[348403201,1736514427261,-375.3203364,0.00018245,2]
[348403202,1736514427281,-415.89917169,0.00018245,2]
[348403203,1736514427303,-500.0,0.00018245,2]
[348403204,1736514427327,-500.0,0.00018245,2]
[348403205,1736514427350,-500.0,0.00018245,2]
[348403206,1736514427373,-500.0,0.00018245,2]
[348403207,1736514427394,-500.0,0.00018245,2]
[348403208,1736514427416,-500.0,0.00018245,2]
[348403209,1736514427437,-500.0,0.00018245,2]
[348403210,1736514427461,-500.0,0.00018245,2]
[348403211,1736514427481,-500.0,0.00018245,2]
[348403212,1736514427503,-500.0,0.00018245,2]
[348403213,1736514427526,-500.0,0.00018245,2]
[348403214,1736514427568,-500.0,0.00018245,2]
[348403215,1736514427613,-500.0,0.00018245,2]
[348403216,1736514427661,-500.0,0.00018245,2]
[348403217,1736514427710,-500.0,0.00018245,2]
[348403218,1736514427759,-500.0,0.00018245,2]
[348403219,1736514427801,-500.0,0.00018245,2]
[348403220,1736514427821,-605.11033082,0.00018245,2]
[348403221,1736514427844,-489.71807322,0.00018245,2]
[348403222,1736514427870,-383.34236799,0.00018245,2]
[348403223,1736514427895,-500.0,0.00018245,2]
[348403224,1736514427922,-500.0,0.00018245,2]
[348403225,1736514427950,-500.0,0.00018245,2]
[348403226,1736514427974,-500.0,0.00018245,2]
[348403227,1736514427997,-500.0,0.00018245,2]
[348403228,1736514428023,-500.0,0.00018245,2]
[348403229,1736514428047,-500.0,0.00018245,2]
[348403230,1736514428071,-21.60673049,0.00018245,2]
[348403231,1736514443292,-363.58791871,0.00018245,2]
[348403232,1736514565123,-2266.3885202,0.00018063,2]
[348403233,1736514565146,-300.0,0.00018243,2]
[348403234,1736514565166,-711.0,0.00018243,2]
[348403235,1736514565186,-289.45670342,0.00018244,2]
[348403236,1736514565207,-500.0,0.00018244,2]
[348403237,1736514565229,-500.0,0.00018244,2]
[348403238,1736514565250,-264.81581866,0.00018244,2]
[348403239,1736514565272,-500.0,0.00018244,2]
[348403240,1736514565293,-500.0,0.00018244,2]
[348403241,1736514565314,-500.0,0.00018244,2]
[348403242,1736514565335,-500.0,0.00018244,2]
[348403243,1736514565356,-500.0,0.00018244,2]
[348403244,1736514565377,-500.0,0.00018244,2]
[348403245,1736514565397,-398.97180732,0.00018244,2]
[348403246,1736514565419,-400.73714632,0.00018244,2]
[348403271,1736514632411,-5276.55635511,0.00018144,2]
[348403413,1736514638578,-2170.63134392,0.00018144,2]
[348403415,1736514638587,-300.0,0.00018243,2]
[348403417,1736514638596,-285.46516509,0.00018243,2]
[348404213,1736515029404,162.84678,0.00013973,2]
[348404215,1736515456685,500.0,0.00019178,7]
[348404219,1736515675715,7281.23480504,0.00016,2]
[348404225,1736515750246,-4942.2992135,0.00016375,2]
[348404226,1736515750270,-300.0,0.00017358,2]
[348404227,1736515750292,-67376.0,0.00017358,2]
[348404228,1736515750313,-498.1026307,0.00017359,2]
[348404229,1736515750422,-318.24212311,0.00017359,2]
[348404230,1736515750445,-500.0,0.00017359,2]
[348404231,1736515750466,-500.0,0.00017359,2]
[348404232,1736515750488,-500.0,0.00017359,2]
[348404233,1736515750512,-500.0,0.00017359,2]
[348404234,1736515750535,-500.0,0.00017359,2]
[348404235,1736515750556,-500.0,0.00017359,2]
[348404236,1736515750577,-500.0,0.00017359,2]
[348404237,1736515750599,-500.0,0.00017359,2]
[348404238,1736515750622,-500.0,0.00017359,2]
[348404239,1736515750642,-500.0,0.00017359,2]
[348404240,1736515750664,-500.0,0.00017359,2]
[348404241,1736515750685,-420.41059172,0.00017359,2]
[348404242,1736515750708,-500.0,0.00017359,2]
[348404243,1736515750730,-500.0,0.00017359,2]
[348404244,1736515750756,-561.05529969,0.00017359,2]
[348404245,1736515750779,-483.93398113,0.00017359,2]
[348404246,1736515750802,-500.0,0.00017359,2]
[348404247,1736515750824,-500.0,0.00017359,2]
[348404248,1736515750847,-500.0,0.00017359,2]
[348404249,1736515750873,-500.0,0.00017359,2]
[348404250,1736515750896,-500.0,0.00017359,2]
[348404251,1736515750918,-500.0,0.00017359,2]
[348404252,1736515750941,-500.0,0.00017359,2]
[348404253,1736515750964,-500.0,0.00017359,2]
[348404254,1736515750987,-500.0,0.00017359,2]
[348404255,1736515751012,-500.0,0.00017359,2]
[348404256,1736515751035,-500.0,0.00017359,2]
[348404257,1736515751063,-500.0,0.00017359,2]
[348404258,1736515751088,-500.0,0.00017359,2]
[348404259,1736515751112,-500.0,0.00017359,2]
[348404260,1736515751135,-500.0,0.00017359,2]
[348404261,1736515751160,-500.0,0.00017359,2]
[348404262,1736515751184,-500.0,0.00017359,2]
[348404263,1736515751208,-500.0,0.00017359,2]
[348404264,1736515751233,-500.0,0.00017359,2]
[348404265,1736515751257,-500.0,0.00017359,2]
[348404266,1736515751281,-500.0,0.00017359,2]
[348404267,1736515751304,-500.0,0.00017359,2]
[348404268,1736515751330,-500.0,0.00017359,2]
[348404269,1736515751354,-500.0,0.00017359,2]
[348404270,1736515751377,-500.0,0.00017359,2]
[348404271,1736515751401,-500.0,0.00017359,2]
[348404272,1736515751424,-500.0,0.00017359,2]
[348404273,1736515751447,-500.0,0.00017359,2]
[348404274,1736515751469,-500.0,0.00017359,2]
[348404275,1736515751493,-500.0,0.00017359,2]
[348404276,1736515751516,-500.0,0.00017359,2]
[348404277,1736515751539,-500.0,0.00017359,2]
[348404278,1736515751562,-500.0,0.00017359,2]
[348404279,1736515751586,-500.0,0.00017359,2]
[348404280,1736515751609,-500.0,0.00017359,2]
[348404281,1736515751631,-500.0,0.00017359,2]
[348404282,1736515751653,-500.0,0.00017359,2]
[348404283,1736515751676,-500.0,0.00017359,2]
[348404284,1736515751699,-500.0,0.00017359,2]
[348404285,1736515751723,-500.0,0.00017359,2]
[348404286,1736515751745,-500.0,0.00017359,2]
[348404287,1736515751770,-500.0,0.00017359,2]
[348404288,1736515751793,-596.07790042,0.00017359,2]
[348404289,1736515751818,-500.0,0.00017359,2]
[348404290,1736515751841,-500.0,0.00017359,2]
[348404291,1736515751864,-500.0,0.00017359,2]
[348404292,1736515751889,-500.0,0.00017359,2]
[348404293,1736515751912,-500.0,0.00017359,2]
[348404294,1736515751937,-500.0,0.00017359,2]
[348404295,1736515751959,-500.0,0.00017359,2]
[348404296,1736515751982,-500.0,0.00017359,2]
[348404297,1736515752008,-500.0,0.00017359,2]
[348404298,1736515752031,-500.0,0.00017359,2]
[348404299,1736515752054,-500.0,0.00017359,2]
[348404300,1736515752076,-565.17033795,0.0001736,2]
[348404301,1736515752099,-10363.18980859,0.00017361,5]
[348404302,1736515752120,-4216.9935444,0.00017361,5]
[348404303,1736515752142,-13618.6408547,0.00017367,2]
[348404304,1736515752163,-151.13984931,0.00017373,2]
[348404305,1736515752183,-218.30796304,0.00017373,2]
[348404306,1736515752205,-243.7682603,0.00017373,2]
[348404307,1736515752226,-400.46813336,0.00017373,2]
[348404308,1736515752247,-502.14574455,0.000174,2]
[348404309,1736515752270,-152.0,0.00017679,2]
[348404310,1736515752291,-5577.24444283,0.00017845,2]
[348404311,1736515752313,-499.0,0.00018232,2]
[348404312,1736515752334,-254.5560828,0.00018243,2]
[348404313,1736515752355,-155.63,0.000186,2]
[348404314,1736515752377,-539.36640696,0.00018857,2]
[348404315,1736515752399,-1693.15267274,0.000189,2]
[348404316,1736515752423,-420.0,0.00018952,2]
[348404317,1736515752444,-344.76805905,0.00019,4]
[348404318,1736515752500,-1655.23194095,0.00019,4]
[348404319,1736515752525,-500.0,0.00019178,2]
[348404320,1736515752629,-500.0,0.00019178,2]
[348404321,1736515752650,-500.0,0.00019178,2]
[348404322,1736515752672,-272.79778784,0.00019178,2]
[348404323,1736515752693,-500.0,0.00019178,2]
[348404324,1736515752714,-164.46859,0.00019178,2]
[348404325,1736515752735,-165.661229,0.00019178,2]
[348404326,1736515752759,-326.116,0.00019195,2]
[348404327,1736515757104,-491.97341373,0.00019602,4]
[348404328,1736515767892,257.09864958,0.00017373,2]
[348404329,1736515768260,500.0,0.00017373,2]
[348404330,1736515768435,1500.0,0.00018922,2]
[348404331,1736515768481,1000.0,0.00017921,2]
[348404332,1736515773246,501.61105771,0.00017373,2]
[348404333,1736515779871,500.0,0.00017373,2]
[348404334,1736515779938,741.3983294,0.00017921,2]
[348404335,1736515781121,312.01724712,0.00017373,2]
[348404338,1736515802996,367.53928994,0.00017373,2]
[348404339,1736515803062,266.74589917,0.00017373,2]
[348404340,1736515803974,266.74761628,0.00017373,2]
[348404341,1736515809444,166.32366555,0.00017373,2]
[348404393,1736515832728,-1128.76844849,0.000189,2]
[348404394,1736515832739,-302.8183302,0.00019504,2]
[348404396,1736515832750,-3276.1634229,0.000198,2]
[348404403,1736515832807,-5438.8365771,0.000198,2]
[348404405,1736515832824,-300.0,0.00019999,2]
[348404407,1736515832836,-2823.0,0.0002,2]
[348404408,1736515832847,-2000.0,0.0002,4]
[348404409,1736515832858,-162.84678,0.00020807,2]
[348404411,1736515832870,-801.125,0.0002082,2]
[348404413,1736515832881,-153.7491537,0.00020932,2]
[348404415,1736515832892,-2000.0,0.00021,4]
[348404417,1736515832906,-151.0,0.00021,2]
[348404419,1736515832917,-151.0,0.00021,2]
[348404421,1736515832928,-151.0,0.00021,2]
[348404423,1736515832939,-151.0,0.00021,2]
[348404425,1736515832950,-151.0,0.00021308,2]
[348404427,1736515832961,-151.0,0.00021308,2]
[348404429,1736515832972,-151.0,0.00021308,2]
[348404431,1736515832982,-152.363109,0.00021308,2]
[348404433,1736515832992,-535.0,0.00021308,2]
[348404434,1736515833004,-1742.724,0.00021308,2]
[348404436,1736515833015,-2316.0,0.00021308,2]
[348404438,1736515833026,-394.0,0.00021308,2]
[348404440,1736515833037,-365.9354875,0.00021479,2]
[348404444,1736515833049,-620.33522065,0.000215,2]
[348404448,1736515833061,-157.0,0.00021543,2]
[348404451,1736515833080,-5181.5949043,0.000216,5]
[348404468,1736515833296,-2108.49677221,0.000216,5]
[348404472,1736515833309,-2823.0,0.000216,4]
[348404474,1736515833333,-216.4532918,0.00021697,2]